Workbook

Sheet Guidance Notes
A2: Guidance Notes
A3: 1 | B3: GM 2021 In Operation aims to encourage buildings that have been previously certified before to continuously improve and maintain their performance.
A4: 2 | B4: The assessment will be based on their measured data. No letter of commitment or undertaking will be accepted for GM2021 In Operation certification. Supporting documents such as OSE report, IAQ audit, POE survey shall be completed prior to the GM assessment.
A5: 3 | B5: Based on the actual performance, the GM ratings can be upgraded or downgraded. For example, if a building that has been previously certified as GM Gold rating, but if the actual performance at the time of assessment meets the GM2021 Platinum requirement, its rating can be upgraded to Platinum.
A6: 4 | B6: How to calculate EUI for EE pathway1? Energy Use Intensity (EUI) express a building's energy use over a period of one year. It's calculated by dividing the total energy consumed by the building in one year (measured in kWh) by the total gross floor area (GFA) of the building (m2). You can get your most recent one year's energy use from your utility bills and divided by GFA to get the most recent EUI. Note: to use EUI pathway, the occupancy rate must be higher than 60%.
A7: 5 | B7: TSE stands for Total System Efficiency. For water-cooled or air-cooled system, it is the sum of the efficiency values of both chiller plant and air side; for VRF or unitary system, TSE is the sum of efficiency values of the CU and FCUs (or AHUs if applicable).
A8: 6 | B8: DCS refers to the supply of chilled water for cooling purpose from a central source to multiple buildings through a network of pipes. Individual users purchase chilled water from the district cooling system operator and do not need to install separate chiller plant or unitary system. This is different from buildings’ in-house air-conditioning plant, in part or in full, being maintained and operated by a third party.
A9: 7 | B9: Under EE Pathway 2, projects shall meet the minimum requirements i.e. the TSE should be better than 0.9kW/RT or the plant efficiency must be better than 0.65kW/RT, regardless of the project's previous GM rating. Compliance through the plant efficiency of 0.65kW/RT will be phased out by 31 Oct 2023 (based on LOA date). In other words, from 1 Nov 2023, all re-certification projects are subject to the same minimum TSE of 0.9kW/RT. For projects complying with minimum 0.65kW/RT for plant efficiency before 31 Oct 2023, air side efficiency must be measured as well, though it is not for compliance purposes. The is for building owners to take note of the airside performance and prepare for compliance with future requirement.
A10: 8 | B10: Under TSE requirement in GM2021 In Operation, is it required to measure TSE for all types of systems i.e. water cooled, air cooled and VRF system? The answer is yes for both water and air side efficiencies. However for VRF system, the CU efficiency can be based on catalogue and NEA formula till 31 Oct 2023 (LOA issued). In other words, from 1 Nov 2023, ongoing projects with VRF system need to measure their CUs’ efficiency. For projects do not have VRF's technical specifications, and do not want to measure its efficiency before 30 Oct 2023, the VRF efficiency will be calculated based on nameplate power and cooling load. For buildings with permanent M&V for VRF system, such as suppliers' monitoring system, the efficiency should be based on the measured data. OSE report should include air side and VRF as well.
A11: 9 | B11: For projects without permanent M&V for air side, how can the air side efficiency be measured? For projects without permanent M&V for airside, 3rd party energy audit for air side is required. Please see detailed requirement below: a) For AHUs with VSD (most projects), power readings should be downloaded from all AHUs to calculate air side efficiency; b) For AHUs without VSD (not common for GM certified projects), measurement must be taken with the sampling size of 30% for AHUs of each size (in terms of cooling capacity) with trend logging of power and cooling load for one week. The minimum number of AHUs to be measured is 5 and capped at max of 20 AHUs. When the actual number of AHUs on site is less than 5, all AHUs need to be measured. c) For FCUs, catalogue data can be used to do calculation This is valid till the next major retrofit when the building will be subject to GM2021 full certification.
A12: 10 | B12: Does OSE report need to be endorsed by an Energy Auditor (EA)or PE(Mech) for GM2021 In Operation? For all projects that are required to submit independent OSE report, the OSE has to be endorsed. If the on-site system is linked to BCA system (such as SLEB hub or chiller portal), OSE report and its endorsement are not required.
A13: 11 | B13: Can Existing Residential Buildings (ERB) re-certification be assessed under GM2021 In Operation? Yes, GM2021 In Operation is applicable for both ERB and ENRB.

Sheet 1. Project Details
A2: GM: 2021 In Operation is applicable for Existing Buildings (a) which have previously attained Green Mark certification, (b) applying for re-certification and (c) have not done any major retrofit to the building's chilled water system.
A5: GM: 2021 In Operation
A8: Project Details | G8: Possible inputs
A9: GM Reference No
A10: Building name
A11: Type of Building | G11: Office / Retail / Hotel / Mixed Office + Retail
A12: GFA (m2)
A13: Carpark Area (m2)
A14: Air-conditioned Area (m2)
A16: Building Key Performance Data:
A17: Type of Aircon system | G17: Central Water-cooled Chiller Plant / VRF System / Unitary System
A18: Building cooling load (RT)
A19: Chiller configuration (e.g. 3 nos. x 500RT)
A20: Cooling load / aircon area (W/m2) | C20: =(C18*3517)/C14 -> 
A21: Air-conditioning system efficiency (kW/RT) (Plant or CU)
A22: Air Distribution system efficiency (kW/RT)
A23: Total System Efficiency, TSE (kW/RT)
A24: Total Building Energy consumption (kWh/yr)
A25: Latest EUI (kWh/m2/yr)

Sheet 2. EE requirement
A2: Rating | B2: Gold* | C2: GoldPLUS | D2: Platinum | E2: SLE
A3: % Energy efficiency improvement over 2005 levels* | B3: 0.4 | C3: 0.5 | D3: 0.55 | E3: 0.6
A4: Applicable EE Pathways: Pathway 1 – EUI; Pathway 2 – Fixed metrics
A6: *Aligns with mandatory minimum energy efficiency requirements to raise energy performance standards of existing buildings

Sheet 2.1 EE Pathway1
B2: EUI Pathway1: for buildings with in-house Chilled water systems or other cooling systems | I2: EUI Pathway1: for buildings supplied by DCS*
B3: Building Type | C3: Gold 40% | D3: Goldplus 50% | E3: Platinum 55% | F3: SLE 60% | I3: Building Type | J3: Gold 40% | K3: Goldplus 50% | L3: Platinum 55% | M3: SLE 60%
B4: Commercial | I4: Commercial
B5: Office Buildings (Large) | C5: 165 | D5: 155 | E5: 140 | F5: 115 | I5: Office Buildings (Large) | J5: 120 | K5: 100 | L5: 90 | M5: =K5/0.5*0.4 -> 80
B6: Office Buildings (Small) | C6: 150 | D6: 135 | E6: 120 | F6: 100 | I6: Office Buildings (Small) | J6: 105 | K6: 90 | L6: 80 | M6: 75
B7: Hotels (Large) | C7: 270 | D7: 230 | E7: 220 | F7: 190 | I7: Hotels (Large) | J7: 180 | K7: =230*0.65 -> 149.5 | L7: =K7/0.5*0.45 -> 134.55 | M7: =K7/0.5*0.4 -> 119.6
B8: Hotels (Small) | C8: 200 | D8: 180 | E8: 160 | F8: 140 | I8: Hotels (Small) | J8: 145 | K8: =185*0.65 -> 120.25 | L8: 110 | M8: 95
B9: Retail Malls | C9: 300 | D9: 240 | E9: 210 | F9: 160 | I9: Retail Malls | J9: 190 | K9: 160 | L9: 144 | M9: 128
B10: Educational | I10: Educational
B11: IHL (University, Polytechnics and ITE) | C11: 150 | D11: 130 | E11: 120 | F11: 90 | I11: IHL (University, Polytechnics and ITE)
B12: Private Schools and Colleges | C12: 130 | D12: 110 | E12: 100 | F12: 80 | I12: Private Schools and Colleges
B13: Junior Colleges (MOE) | C13: 70 | D13: 60 | E13: 50 | F13: 40 | I13: Junior Colleges (MOE) | K13: nil
B14: Secondary Schools (MOE) | C14: 45 | D14: 40 | E14: 35 | F14: 30 | I14: Secondary Schools (MOE)
B15: Primary Schools (MOE) | C15: 45 | D15: 40 | E15: 35 | F15: 30 | I15: Primary Schools (MOE)
B16: Healthcare | I16: Healthcare
B17: Hospitals (Private and General) | C17: 450 | D17: 375 | E17: 340 | F17: 300 | I17: Hospitals (Private and General) | J17: 295 | K17: 245 | L17: 230 | M17: 210
B18: Community Hospitals | C18: 280 | D18: 230 | E18: 210 | F18: 185 | I18: Community Hospitals | J18: 180 | K18: 149.5 | L18: 140 | M18: 129.5
B19: Polyclinic | C19: 180 | D19: 150 | E19: 135 | F19: 120 | I19: Polyclinic | J19: 120 | K19: 100 | L19: 90.45 | M19: 85
B20: Nursing/Youth Homes | C20: 105 | D20: 90 | E20: 80 | F20: 70 | I20: Nursing/Youth Homes | J20: 70 | K20: 60 | L20: 55 | M20: 50
B21: Other Non-Residential | I21: Other Non-Residential
B22: Mixed Develpments | C22: by GFA mix | I22: Mixed Develpments | J22: by GFA mix
B23: Community Centres | C23: 180 | D23: 150 | E23: 125 | F23: 110 | I23: Community Centres | J23: 120 | K23: 100 | L23: 90 | M23: 80
B24: Civic Buildings | C24: 100 | D24: 80 | E24: 70 | F24: 60 | I24: Civic Buildings | J24: 65 | K24: 50 | L24: 45 | M24: 40
B25: Cultural Institution | C25: 220 | D25: 180 | E25: 140 | F25: 120 | I25: Cultural Institution | J25: 140 | K25: 115 | L25: 100 | M25: 85
B26: Sports and Recreation Centres | C26: 125 | D26: 110 | E26: 80 | F26: 50 | I26: Sports and Recreation Centres | J26: 85 | K26: 70 | L26: 65 | M26: 35
B27: Religious/ Place of Worship | C27: NA | I27: Religious/ Place of Worship | J27: NA
B28: Industrial | I28: Industrial
B29: High Tech Industrial | C29: NA | I29: High Tech Industrial | J29: NA
B30: Light Industrial | I30: Light Industrial
B31: Warehouses, Workshops and Others | I31: Warehouses, Workshops and Others
B32: Residential | I32: Residential
B33: Multi Residential (HDB, EC, Condo, pte apartments) | C33: NA | I33: Multi Residential (HDB, EC, Condo, pte apartments) | J33: NA
B34: Cluster Housing | I34: Cluster Housing
B35: Landed Housing | I35: Landed Housing
B38: Additional Notes
B39: Non Residential Buildings Minimum TSE | D39: 0.9kW/RT
B40: On-site RE is included in EUI (net off) | D40: On-site RE
B41: EUI measured for EB and In Operation - occupancy rate | D41: >60%
B42: Excludes EV charging station consumption
B44: EUI calculation:
B45: Energy Utilisation Intensity =Total Building Energy Consumption of one year (kWhyr) / GFA (m2) Please use the most recent 12 months' energy consumption (occupancy rate >60%) to calculate the most recent EUI.
B46: *DCS refers to the supply of chilled water for cooling purpose from a central source to multiple buildings through a network of pipes. Individual users purchase chilled water from the district cooling system operator and do not need to install their own air-conditioning plant. This is different from buildings’ in-house air-conditioning plant, in part or in full, being maintained and operated by a third party.

Sheet 4. EUI (hidden)
A1: Energy Utility Index (3 Years Electricity Bill)
A3: Energy Consumption (1st Year, Baseline)
A5: Month | B5: Total Consumption (kWh) | C5: Tenant's Consumption (kWh) | D5: Landlord's Consumption (kWh)
A6: e.g. Jun'14 | B6: 1228556 | C6: 13401 | D6: 1215155
A18: Yearly Consumption | B18: =SUM(B6:B17) -> 1228556 | C18: =SUM(C6:C17) -> 13401 | D18: 1215155
A20: Energy Consumption (2nd Year)
A22: Month | B22: Total Consumption (kWh) | C22: Tenant's Consumption (kWh) | D22: Landlord's Consumption (kWh)
A23: e.g. Jun'15 | B23: 1096746 | C23: 9944 | D23: 1086802
A35: Yearly Consumption | B35: =SUM(B23:B34) -> 1096746 | C35: =SUM(C23:C34) -> 9944 | D35: 1086802
A36: Baseline Improvement | B36: =(B18-B35)/B18 -> 0.1072885566
A38: Energy Consumption (3rd Year)
A40: Month | B40: Total Consumption (kWh) | C40: Tenant's Consumption (kWh) | D40: Landlord's Consumption (kWh)
A41: e.g. Jun'16 | B41: 1093303 | C41: 11049 | D41: 1082254
A53: Yearly Consumption | B53: =SUM(B41:B52) -> 1093303 | C53: =SUM(C41:C52) -> 11049 | D53: 1082254
A54: Baseline Improvement | B54: =(B18-B53)/B18 -> 0.1100910337
A56: Computation of Energy Untility Index (EUI) based on area (kW/m²/year)
B58: Year 1 | C58: Year 2 | D58: Year 3
A59: Total Building Energy Consumption (kWh) | B59: =B18 -> 1228556 | C59: =B35 -> 1096746 | D59: =B53 -> 1093303
A60: Gross Floor Area,m² (GFA) | B60: ='1. Project Details'!C12 -> 0
A61: Energy Utility Index, EUI | B61: =B59/B60 ->  | C61: =C59/B60 ->  | D61: =D59/B60 -> 
A62: Deviation | B62: Baseline | C62: =(C61-B61)/B61 ->  | D62: =(D61-B61)/B61 -> 
A63: Reasons, if deviation > ± 5% | B63: -

Sheet 2.2 EE Pathway2
A2: Building types | B2: PARAMETER | C2: Gold | D2: GoldPLUS | E2: Platinum | F2: SLE
A3: For Commerical buildings | B3: ACMV TSE1 | C3: TSE 0.9 or Plant efficiency of 0.65 | D3: 0.8 | E3: 0.74 | F3: 0.68
A4: For Healthcare buildings | C4: TSE 0.9 or Plant efficiency of 0.65 | D4: 0.8 | E4: 0.75 | F4: 0.7
A5: For Educational buildings | C5: TSE 0.9 or Plant efficiency of 0.65 | D5: 0.8 | E5: 0.75 | F5: 0.7
A6: For High Tech/ High intensity Industrial buildings | C6: TSE 0.9 or Plant efficiency of 0.65 | D6: 0.8 | E6: 0.78 | F6: 0.75
A7: For Light industrial/ Warehouse buildings | C7: TSE 0.9 or Plant efficiency of 0.65 | D7: 0.8 | E7: 0.75 | F7: 0.7
A8: For other non Residential buildings | C8: TSE 0.9 or Plant efficiency of 0.65 | D8: 0.8 | E8: 0.75 | F8: 0.7
A11: For building supplied by DCS2
A14: PARAMETER | B14: Gold | C14: GoldPLUS | D14: Platinum | E14: SLE
A15: Air side efficiency | B15: 0.25 | C15: 0.2 | D15: 0.18 | E15: 0.16
A17: Note: 1TSE is Total System Efficiency, including the efficiency from both chilled water plant and air side for water-cooled system; for VRF system, TSE includes the CU and FCUs efficiency 2DCS refers to the supply of chilled water for cooling purpose from a central source to multiple buildings through a network of pipes. Individual users purchase chilled water from the district cooling system operator and do not need to install their own air-conditioning plant. This is different from buildings’ in-house air-conditioning plant, in part or in full, being maintained and operated by a third party. 3For GM2021 full certification, M&V is required for TSE calculation/measurement; However, for project previously certified under legacy criteria, applying re-certification based on GM: 2021 In-Operation, air side efficiency can be done by third party energy audit. The methodology of air side measurement and its sampling size should refer to the guidance notes.

Sheet 3. OSE Report
A1: Summary of OSE/Energy Audit Report (including airside efficiency) | C1: Use "Insert..Object..Create from File" command if macro execution is disabled
A3: Daily Average Reading | B3: Period | D3: Unit
B4: Day Time^ | C4: Night Time~
A5: Cooling Load | D5: RT
A6: Cooling Load Density (Air-con area) | D6: m2/RT
A7: Energy Consumption from Chilled water side (Chillers, Pumps, CTs) | D7: kW
A8: Chilled water supply temperature | D8: oC
A9: Chilled water return temperature | D9: oC
A10: Chilled water delta T | D10: oC
A11: Chilled water flow rate | D11: l/s
A12: Chilled water flow rate vs cooling load | D12: USgpm/RT
A13: *Condenser heat rejection | D13: HRT
A14: *Condenser water supply temperature | D14: oC
A15: *Condenser water return temperature | D15: oC
A16: *Condenser water delta T | D16: oC
A17: *Condenser water flow rate | D17: l/s
A18: *Condenser water flow rate vs cooling load | D18: USgpm/RT
A19: Chiller(s) efficiency | D19: kW/RT
A20: Chilled water pump(s) efficiency | D20: kW/RT
A21: *Condenser water pump(s) efficiency | D21: kW/RT
A22: *Cooling tower(s) efficiency | D22: kW/RT
A23: Overall chiller plant system efficiency | D23: kW/RT
A24: Energy consumption from airside | D24: kW
A25: Air Distribution system efficiency | D25: kW/RT
A26: Total System Efficiency | D26: kW/RT
A28: *Not applicable to Air-cooled Chilled Water Plant
A29: ~For hotels and other developments with 24-hour operations only, night time shall refer to the period from 11pm-7am
A30: ^ For hotels and other developments with 24-hour operations, day-time shall refer to the period from 7am–11pm; for all other developments, daytime shall refer to the normal operating hours stipulated in clause 6.1.4
A32: Summary of Heat Balance
B33: Data | C33: Unit | D33: Formula
A34: Sum of total electrical energy used | C34: kWh | D34: (A)
A35: Sum of total cooling produced | C35: RTh | D35: (B)
A36: Sum of total heat rejected | C36: RTh | D36: (C)
A37: Chiller Plant Efficiency | C37: kW/RT | D37: (A) / (B)
A38: Total Heat Balance Data Count | C38: - | D38: (D)
A39: Data Count > + 5% error | C39: - | D39: (E)
A40: Data Count < - 5% error | C40: - | D40: (F)
A41: Data Count within ±5% error | C41: - | D41: (G) = (D) – (E) – (F)
A42: % Heat Balance within ±5% error | C42: % | D42: 100 x (G) / (D)

Sheet 4. Energy Consumption
A1: Energy Use Intensity (3 Years Electricity Bill)
A3: Energy Consumption (1st Year, Baseline)
A5: Month | B5: Total Consumption (kWh) | C5: Tenant's Consumption (kWh) | D5: Landlord's Consumption (kWh)
A6: e.g. Jun'18 | B6: 1228556 | C6: 13401 | D6: 1215155
A18: Yearly Consumption | B18: =SUM(B6:B17) -> 1228556 | C18: =SUM(C6:C17) -> 13401 | D18: =SUM(D6:D17) -> 1215155
A20: Energy Consumption (2nd Year)
A22: Month | B22: Total Consumption (kWh) | C22: Tenant's Consumption (kWh) | D22: Landlord's Consumption (kWh)
A23: e.g. Jun'19 | B23: 1096746 | C23: 9944 | D23: 1086802
A35: Yearly Consumption | B35: =SUM(B23:B34) -> 1096746 | C35: =SUM(C23:C34) -> 9944 | D35: =SUM(D23:D34) -> 1086802
A36: Baseline Improvement | B36: =(B18-B35)/B18 -> 0.1072885566
A38: Energy Consumption (3rd Year)
A40: Month | B40: Total Consumption (kWh) | C40: Tenant's Consumption (kWh) | D40: Landlord's Consumption (kWh)
A41: e.g. Jun'20 | B41: 1093303 | C41: 11049 | D41: 1082254
A53: Yearly Consumption | B53: =SUM(B41:B52) -> 1093303 | C53: =SUM(C41:C52) -> 11049 | D53: =SUM(D41:D52) -> 1082254
A54: Baseline Improvement | B54: =(B18-B53)/B18 -> 0.1100910337
A56: Computation of Energy Use Intensity (EUI) based on area (kW/m²/year)
B58: Year 1 | C58: Year 2 | D58: Year 3
A59: Total Building Energy Consumption (kWh) | B59: =B18 -> 1228556 | C59: =B35 -> 1096746 | D59: =B53 -> 1093303
A60: Gross Floor Area,m² (GFA) | B60: ='[1]1. Project Details'!C25 -> 45000
A61: Energy Use Intensity, EUI | B61: =B59/B60 -> 27.30124444 | C61: =C59/B60 -> 24.37213333 | D61: =D59/B60 -> 24.29562222
A62: Deviation | B62: Baseline | C62: =(C61-B61)/B61 -> -0.1072885566 | D62: =(D61-B61)/B61 -> -0.1100910337
A63: Reasons, if deviation > ± 5% | B63: -

Sheet 5. Water Consumption
A1: Water Efficiency (3 Years Building Water Bill)
A3: Water Consumption (1st Year, Baseline)
A5: Month | B5: Total Consumption (m³) | C5: Tenant's Consumption (m³) | D5: Landlord's Consumption (m³)
A6: e.g. Jun'18 | B6: 12256.1 | C6: 376 | D6: 11880.1
A18: Yearly Consumption | B18: =SUM(B6:B17) -> 12256.1 | C18: =SUM(C6:C17) -> 376 | D18: 11880.1
A20: Water Consumption (2nd Year)
A22: Month | B22: Total Consumption (m³) | C22: Tenant's Consumption (m³) | D22: Landlord's Consumption (m³)
A23: e.g. Jun'19 | B23: 11682.2 | C23: 603 | D23: 11079.2
A35: Yearly Consumption | B35: =SUM(B23:B34) -> 11682.2 | C35: =SUM(C23:C34) -> 603 | D35: 11079.2
A36: Baseline Improvement | B36: =(B18-B35)/B18 -> 0.04682566232
A38: Water Consumption (3rd Year)
A40: Month | B40: Total Consumption (m³) | C40: Tenant's Consumption (m³) | D40: Landlord's Consumption (m³)
A41: e.g. Jun'20 | B41: 10688.1 | C41: 711 | D41: 9977.1
A53: Yearly Consumption | B53: =SUM(B41:B52) -> 10688.1 | C53: =SUM(C41:C52) -> 711 | D53: 9977.1
A54: Baseline Improvement | B54: =(B18-B53)/B18 -> 0.1279362929
B56: Year 1 | C56: Year 2 | D56: Year 3
A57: Total Building Water Consumption (m3) | B57: =B18 -> 12256.1 | C57: =B35 -> 11682.2 | D57: =B53 -> 10688.1
A58: Deviation | B58: Baseline | C58: =(C57-B57)/B57 -> -0.04682566232 | D58: =(D57-B57)/B57 -> -0.1279362929
A59: Reasons, if deviation > ± 5% | B59: -

Sheet 6. Energy & Water Improve Plan
A1: Energy and Water Improvement Plan
A3: Submission of plans showing intent, measures and implementation strategies to achieve improvement target set against current performance over the next 3 years.
A5: 3 Years Energy Efficiency Improvement Target: | C5: % | E5: Use "Insert..Object..Create from File" command if macro execution is disabled
A6: Assessor's comment:
A8: 3 Years Water Efficiency Improvement Target: | C8: % | E8: Use "Insert..Object..Create from File" command if macro execution is disabled
A9: Assessor's comment:

Sheet 7. CoC
A1: Cycles of Concentration (for water-cooled chiller plant only)
A3: Submission of cooling tower’s water treatment reports showing 7 or better cycles of concentration.
A5: Cycle of Concentration: | C5: Cycles | E5: Use "Insert..Object..Create from File" command if macro execution is disabled
A6: Assessor's comment:

Sheet 8. Sustainable OM (hidden)
A1: Sustainable Operations & Management
A3: Occupant Satisfaction Survey
A5: A post-occupancy evaluation is a survey to gauge occupants’ satisfaction on indoor environmental quality and identify corrective actions that will enhance comfort. Please ask your assessor for a survey weblink for this project, which may then be disseminated to occupants. Results will be tabulated automatically, so that FM may view them and record corrective actions taken. Alternatively, you may use the attached questionaire from Annex B of GM ENRB:2017, and tabulate the response with the attached result template. | G5: Use "Insert..Object..Create from File" command if macro execution is disabled
A6: Assessor's comment:
A8: Environmental Policy
A10: Environmental Policy that reflects sustainability goals set for the building and its systems | G10: Use "Insert..Object..Create from File" command if macro execution is disabled
A11: Assessor's comment:
A13: Waste Recycling Reports
A15: Name of waste recycling company: | G15: Use "Insert..Object..Create from File" command if macro execution is disabled
A16: Assessor's comment:

Sheet 8. IEQ
A1: Indoor Environment Quality
A3: IAQ Audit
A5: Submission of latest IAQ audit report performed by SAC accredited consultants/companies, stating major areas of concern (e.g. mold issues).
A7: Test Report Number: | D7: Use "Insert..Object..Create from File" command if macro execution is disabled
A8: Date Audit was Conducted:
A9: Name of SAC-Accredited Lab:
A10: Assessor's comment:
A12: Lighting Lux Level
A14: Submission of lighting lux levels for various areas, complying with SS531 or CP38.
A16: Test Report Number: | D16: Use "Insert..Object..Create from File" command if macro execution is disabled
A17: Measurements taken by:
A18: Assessor's comment:
A20: Noise Level
A22: Submission of noise levels for internal areas, complying with SS553 or CP13.
A24: Test Report Number: | D24: Use "Insert..Object..Create from File" command if macro execution is disabled
A25: Measurements taken by:
A26: Assessor's comment:

Sheet 9. Others
A4: POE survey
A6: Submit POE survey results | B6: done within past one year
A20: Waste reports
A21: Submit past one year's waste collection report detailing the breakdown of types and quantity of recyclables and non-recyclables
A23: Waste report of recyclables and non-recyclables
A28: Tenants/Occupants engagement
A30: Submit photos of health and wellbeing related activities organised by Green Building Committee | B30: At least 3 activities per year

Sheet Sheet1 (hidden)
A1: 1 | B1: Energy and water consumption for past three years
A2: 2 | B2: IAQ audit
A3: 3 | B3: POE
A4: 4 | B4: Lux level measurement
A5: 5 | B5: Smart control (co2) for refresh air intake
A6: 6 | B6: Lighting control (occupancy sensors)
A7: 7 | B7: monitoring recycles and non-recycles
A8: 8 | B8: energy and water improvement plan
A9: 9 | B9: at least 3 green or health related activities for tenants per year
